Cogmind - Beta 13 @@@ ROGUE MODE // 2024.04.09 @ 17:18:37 Player: bennydictor Result: Destroyed by S-10 Pest with Light Assault Rifle Performance ------------- Evolutions (0) 0 Regions Visited (2) 400 Robots Destroyed (21) 105 Value Destroyed (531) 531 Prototype IDs (2) 40 Alien Tech Used (0) 0 Bonus (0) 0 TOTAL SCORE: 1076 Bonus ------- None Cogmind --------- Core Integrity 0/250 Matter 276/300 Energy 100/100 System Corruption 0% Temperature Cool (0) Movement Walking (260) Ox2 Location -10/Mines Parts ------- > --- POWER (1) -------- (None) > --- PROPULSION (2) --- Aluminum Leg Aluminum Leg > --- UTILITY (2) ------ High-capacity Storage Unit Hardened Light Armor Plating > --- WEAPON (2) ------- Light Assault Rifle Makeshift Axe > --- INVENTORY (20) --- Ion Engine Aluminum Leg Aluminum Leg Aluminum Leg Heat Sink High-capacity Storage Unit Huge Storage Unit Small Battery (100) Weight Redist. System Visual Processing Unit Sensor Array Core Shielding Core Shielding Hardened Light Armor Plating Hardened Light Armor Plating Hardened Light Armor Plating Field Recycling Unit (0) Small Laser Small Laser Stasis Trap (100%) Peak State ------------ > --- POWER ------------ Light Nuclear Core > --- PROPULSION ------- Aluminum Leg Aluminum Leg > --- UTILITY ---------- High-capacity Storage Unit Hardened Light Armor Plating > --- WEAPON ----------- Light Assault Rifle Makeshift Axe > --- INVENTORY -------- Ion Engine Aluminum Leg Aluminum Leg Aluminum Leg Heat Sink High-capacity Storage Unit Huge Storage Unit Small Battery Weight Redist. System Visual Processing Unit Sensor Array Core Shielding Core Shielding Hardened Light Armor Plating Hardened Light Armor Plating Hardened Light Armor Plating Field Recycling Unit Small Laser Small Laser Stasis Trap [Rating: 15] Favorites ----------- Power Light Nuclear Core Engine Ion Engine Power Core Light Nuclear Core Propulsion Aluminum Leg Treads Light Treads Leg Aluminum Leg Utility High-capacity Storage Unit Device Sensor Array Storage High-capacity Storage Unit Protection Hardened Light Armor Plating Weapon Light Assault Rifle Energy Gun Small Laser Ballistic Gun Light Assault Rifle Slashing Weapon Makeshift Axe Build | -11 -10 -10 ------- Run | Yrd Mat Min Slots Evolved . | . . . Power . | . . . Propulsion . | . . . Utility . | . . . Weapon . | . . . Parts Attached 32 | 10 15 7 Power 3 | 1 1 1 Engine 1 | 1 . . Core 2 | . 1 1 Reactor . | . . . Propulsion 10 | 5 4 1 Treads 2 | 2 . . Leg 8 | 3 4 1 Wheel . | . . . Hover . | . . . Flight . | . . . Utility 10 | 1 6 3 Device 2 | . 1 1 Storage 5 | 1 4 . Processor . | . . . Hackware . | . . . Protection 3 | . 1 2 Artifact . | . . . Weapon 9 | 3 4 2 Energy Gun 4 | 1 2 1 Energy Cannon . | . . . Ballistic Gun 4 | 2 2 . Ballistic Cannon . | . . . Launcher . | . . . Special Weapon . | . . . Impact Weapon . | . . . Slashing Weapon 1 | . . 1 Piercing Weapon . | . . . Special Melee Weapon . | . . . Unidentified Prototypes . | . . . Parts Lost 7 | . 5 2 Power 2 | . . 2 Propulsion 2 | . 2 . Utility . | . . . Weapon 3 | . 3 . Highest Loss Streak 4 | . 4 1 To Critical Strikes . | . . . Average Slot Usage (%) 97 | . 96 99 Core 12 | . 12 13 Leg 27 | . 27 28 Device 9 | . 10 6 Storage 14 | . 14 14 Protection 2 | . . 7 Energy Gun 12 | . 13 11 Ballistic Gun 14 | . 14 14 Naked Turns . | . . . Heaviest Build 54 | 14 48 54 Greatest Support 40 | 40 20 20 Greatest Overweight (x) 4 | . 4 2 Average Overweight (x) 1 | . 1 2 Largest Inventory Capacity 25 | 8 25 20 Average Capacity 17 | 7 16 20 Most Carried 20 | 7 20 20 Average Carried 14 | 5 13 19 Final Capacity 20 | 8 20 20 Final Carried 20 | 6 20 20 Class Distribution -------------------- 80% | Scavenger-Mutant 19% | Mutant Dominant Class ---------------- Scavenger-Mutant | -10/Materials Scavenger-Mutant | -10/Mines Resources | -11 -10 -10 ----------- Run | Yrd Mat Min Matter Collected 587 | 208 326 53 Remotely . | . . . Salvage Created 617 | . 476 141 Parts 40 | . 30 10 Haulers Intercepted . | . . . Recyclers Shooed . | . . . Parts Field Recycled . | . . . Retrieved Matter . | . . . Parts Self-Destructed . | . . . Prevented . | . . . Kills | -11 -10 -10 ------- Run | Yrd Mat Min Combat Hostiles Destroyed 18 | . 12 6 Guns 18 | . 12 6 Classes Destroyed 3 | . 3 . Watcher 3 | . 3 . Swarmer 7 | . 3 4 Grunt 11 | . 9 2 Best Kill Streak 4 | . 4 2 Combat Bots Only 4 | . 4 2 Max Kills in Single Turn 1 | . 1 1 Gunslinging . | . . . Exploded . | . . . Melee . | . . . Uniques/NPCs Destroyed . | . . . Combat | -11 -10 -10 -------- Run | Yrd Mat Min Hostile Shots Fired 154 | . 82 72 Missed 36 | . 17 19 Damage Taken 1329 | . 873 456 Core 253 | . 148 105 Absorbed by Shields . | . . . Core Remaining (%) 100 | 100 . . Volleys Fired 86 | . 66 20 Largest 2 | . 2 2 Hottest 60 | . 60 60 Shots Fired 157 | . 121 36 Gun 157 | . 121 36 Cannon . | . . . Launcher . | . . . Special . | . . . Kinetic 88 | . 68 20 Thermal 64 | . 48 16 Explosive . | . . . Electromagnetic 5 | . 5 . Robot Hit Streak 16 | . 16 6 Robot Miss Streak 7 | . 7 2 Penetration Max . | . . . Secondary Targets 2 | . 2 . Max Gunslinging Chain 1 | . 1 . Shots Hit Robots 94 | . 69 25 Core Hits 41 | . 31 10 Critical Kills . | . . . Critical Parts Destroyed 1 | . 1 . Critical Strikes 2 | . 1 1 Destroy 1 | . 1 . Sever 1 | . . 1 Melee Attacks 5 | . . 5 Impact . | . . . Slashing 5 | . . 5 Piercing . | . . . Sneak Attacks . | . . . Combat Hostiles . | . . . Follow-up Attacks . | . . . Damage Inflicted 1061 | . 743 318 Guns 969 | . 731 238 Cannons . | . . . Explosions . | . . . Melee 76 | . . 76 Ramming 16 | . 12 4 Kinetic 516 | . 413 103 Thermal 397 | . 262 135 Explosive . | . . . Electromagnetic 56 | . 56 . Impact . | . . . Slashing 76 | . . 76 Piercing . | . . . Highest Corruption . | . . . Average Corruption . | . . . Corruption Purged . | . . . Corruption Blocked . | . . . Overload Shots . | . . . Overflow Damage . | . . . Projectiles . | . . . Explosions . | . . . Melee . | . . . Knockbacks . | . . . Impact . | . . . Kinetic . | . . . Secondary . | . . . Self-Inflicted Damage . | . . . Shots . | . . . Rammed . | . . . Targets Rammed 7 | . 5 2 Kicked 7 | . 5 2 Crushed . | . . . Highest Temperature 157 | . 157 152 Average Temperature 48 | . 47 50 Received Heat Transfer 561 | . 471 90 Siege Activations . | . . . Robots Corrupted . | . . . Combat Hostiles . | . . . Parts Fried . | . . . Impact Corruptions . | . . . Robots Melted . | . . . Combat Hostiles . | . . . Parts Melted 1 | . . 1 Heat Transferred 900 | . 600 300 Parts Sabotaged . | . . . Parts Stolen . | . . . Parts Stripped . | . . . Power Chain Reactions . | . . . Alert | -11 -10 -10 ------- Run | Yrd Mat Min Peak Influence 172 | . 172 150 Initial . | . . . Average 28 | . 30 29 Maximum Alert Level . | . . . Low Security (%) 100 | 100 100 100 Level 1 . | . . . Level 2 . | . . . Level 3 . | . . . Level 4 . | . . . Level 5 . | . . . High Security . | . . . Max Security . | . . . Squads Dispatched 2 | . 2 . Investigation 1 | . 1 . Extermination . | . . . Reinforcement 1 | . 1 . Assault . | . . . Garrison . | . . . Intercept . | . . . Searches Triggered . | . . . Construction Impeded . | . . . Haulers Reinforced . | . . . Active Scanning Responses . | . . . Cargo Convoy Interrupts . | . . . Stealth | -11 -10 -10 --------- Run | Yrd Mat Min Distress Signals 1 | . 1 . Communications Jammed . | . . . Distress Signals . | . . . Times Spotted 38 | . 28 10 Peak Tracking Total 4 | . 4 3 Tactical Retreats 1 | . . 1 Traps | -11 -10 -10 ------- Run | Yrd Mat Min Traps Triggered 2 | . 2 . Indirectly . | . . . Trap Hack Attempts . | . . . Triggered . | . . . Disarmed 5 | . 5 . Reprogrammed . | . . . Reused . | . . . Traps Extracted . | . . . Installed . | . . . Triggered . | . . . Most Traps Carried 1 | . . 1 Machines | -11 -10 -10 ---------- Run | Yrd Mat Min Machines Disabled . | . . . Max in Single Turn . | . . . Machines Repaired . | . . . Machines Dismantled . | . . . Machines Sabotaged . | . . . Overloaded Fab Kills . | . . . Hacking | -11 -10 -10 --------- Run | Yrd Mat Min Machines Accessed 6 | . 6 . Terminals 5 | . 5 . Fabricators . | . . . Repair Stations . | . . . Recycling Units 1 | . 1 . Scanalyzers . | . . . Garrison Access . | . . . Total Hacks 20 | . 20 . Successful 9 | . 9 . Failed 11 | . 11 . Catastrophic . | . . . Database Lockouts . | . . . Manual 3 | . 3 . Terminals 19 | . 19 . Fabricators . | . . . Repair Stations . | . . . Recycling Units 1 | . 1 . Scanalyzers . | . . . Garrison Access . | . . . Terminal Hacks 8 | . 8 . Record 2 | . 2 . Prototype ID Bank 1 | . 1 . Alert Level 1 | . 1 . Locate Traps 1 | . 1 . Disarm Traps 1 | . 1 . Dispatch Records 1 | . 1 . Investigation Status 1 | . 1 . Fabricator Hacks . | . . . Repair Station Hacks . | . . . Recycling Unit Hacks 1 | . 1 . Report Inventory 1 | . 1 . Scanalyzer . | . . . Garrison Access Hacks . | . . . Unauthorized Hacks . | . . . Terminals . | . . . Fabricators . | . . . Repair Stations . | . . . Recycling Units . | . . . Scanalyzers . | . . . Garrison Access . | . . . Data Cores Recovered . | . . . Used . | . . . Hacking Detections 5 | . 5 . Full Trace Events 2 | . 2 . Feedback Events . | . . . Feedback Blocked . | . . . Robot Schematics Acquired . | . . . Robots Built . | . . . Authchips . | . . . Time . | . . . Total Robot Build Rating . | . . . Part Schematics Acquired . | . . . Parts Built . | . . . Authchips . | . . . Time . | . . . Total Part Build Rating . | . . . Parts Repaired . | . . . Time . | . . . Parts Recycled . | . . . Recycled Matter . | . . . Retrieved Matter . | . . . Retrieved Components . | . . . Parts Scanalyzed . | . . . Part Schematics Acquired . | . . . Parts Damaged . | . . . Bothacking | -11 -10 -10 ------------ Run | Yrd Mat Min Used RIF Installer . | . . . Robots Hacked . | . . . Non-combat . | . . . Combat . | . . . Robot Hacks Applied . | . . . Relay Couplers Released . | . . . Fabnet Peak Effective % . | . . . Robots Rewired . | . . . Allies Hacked . | . . . Hacks Repelled . | . . . Allies | -11 -10 -10 -------- Run | Yrd Mat Min Total Allies . | . . . Largest Group . | . . . Highest-Rated Group . | . . . Highest-Rated Ally . | . . . Total Orders . | . . . Ally Attacks . | . . . Total Damage . | . . . Kills . | . . . Allies Corrupted . | . . . Allies Melted . | . . . Intel | -11 -10 -10 ------- Run | Yrd Mat Min Robot Analysis Total . | . . . Derelict Logs Recovered 1 | . . 1 Drone Launches . | . . . Drone Recoveries . | . . . Exploration | -11 -10 -10 ------------- Run | Yrd Mat Min Turns Passed 3935 | 208 2701 1026 Spaces Moved 1581 | 61 1157 363 Core 17 | 12 5 . Treads 10 | 10 . . Legs 1554 | 39 1152 363 Wheels . | . . . Hover . | . . . Flight . | . . . Fastest Speed 50 | 50 120 260 Average Speed 213 | 112 203 260 Slowest Speed 260 | 160 260 260 Overloaded Moves . | . . . Propulsion Burnouts . | . . . Robots Hopped . | . . . Cave-ins Triggered . | . . . Exploration Rate (%) 59 | 6 92 80 Regions Visited 2 Branch Regions 1 Pre-discovered Areas 2 | . . 2 Known Exits Taken . | . . . Unknown Exits Taken 2 | 1 1 . Scrap Searched 1 | . . 1 Spaces Dug . | . . . Terrain Destroyed . | . . . Melee . | . . . Projectile . | . . . AOE . | . . . Terrain Rammed . | . . . Walls Destroyed . | . . . Machines Disabled . | . . . Actions | -11 -10 -10 --------- Run | Yrd Mat Min Total 1988 | 196 1387 405 Wait 222 | 118 102 2 Move 1579 | 60 1156 363 Hop . | . . . Pick Up 40 | 8 30 2 Fast Attach 8 | 4 3 1 Attach 7 | 2 5 . Detach . | . . . Swap 17 | 4 7 6 Drop 17 | . 13 4 Fire 86 | . 66 20 Melee 5 | . . 5 Ram . | . . . Kick 7 | . 5 2 Crush . | . . . Escape Stasis . | . . . Rewire . | . . . Trap . | . . . Miscellaneous . | . . . Route ------- -11/Scrapyard -10/Materials (discovered 5 exits: [*Mat x3] / [*Min] / [*Sub]) -10/Mines (discovered 1 exit: [*Mat]) History --------- Turn | Location | Event 10 | -11/Scrapyard | Discovered new exit (range 16) 209 | -11/Scrapyard | Entered Materials 305 | -10/Materials | Build established: Mutant 455 | -10/Materials | Lost 4 parts (2n2w) 653 | -10/Materials | Discovered new exit (range 7) 874 | -10/Materials | Build established: Scavenger-Mutant 1231 | -10/Materials | Core integrity fell below 50% 1829 | -10/Materials | Discovered new exit (range 15) 2291 | -10/Materials | Discovered new exit (range 15) 2570 | -10/Materials | Discovered new exit (range 6) 2742 | -10/Materials | Discovered new exit (range 15) 2910 | -10/Materials | Entered Mines 3164 | -10/Mines | Core integrity fell below 20% 3400 | -10/Mines | Learned location of Storage (-7) 3689 | -10/Mines | Found a hidden stash of uninstalled traps 3756 | -10/Mines | A weapon hastily lodged in a ceiling crevice suddenly fell to the ground 3912 | -10/Mines | Discovered new exit (range 14) 3936 | -10/Mines | Destroyed by S-10 Pest with Light Assault Rifle Last Messages --------------- rubble with a note attached: "Chop chop!" 03761_ Dropped Weight Redist. System. 03761_ Acquired Mak. Axe. Bump into an enemy to attack with the active melee weapon. Even while active, melee weapons do not fire together with ranged weapons in the same volley. 03857_ Acquired derelict log, extracted data. World map updated: -8/Materials. 03884_ T-07 Excavator is excavating. 03912_ Searching scrap... 03912_ Found Hcp. Storage Unit. 03912_ Found Ion Engine. 03912_ Found Lgt. Ion Engine. 03912_ Found 16 Matter. 03912_ EXIT=FOUND 03913_ Acquired 16 matter. 03928_ S-10 Pest Lgt. Ion Engine severed. 03932_ Lgt. Nuclear Core destroyed. 03935_ S-10 Pest destroyed. Map ----- +----------------------------------------------------+ | | | | | | | | | | | | | | | | | | | | | | | | | ?????????????????????????????????????????????????? | | ?????????????????????????????????????????????????? | | ?????????????????????????????????????????????????? | | ?????????????????????????????????????????????????? | | ?????????????????????????????????????????????????? | | ?????????????????????????????????????????????????? | | ?????????????????????????????????????????????????? | | ?????????????????????????????????????????????????? | | ?????????????????????????????????????????????????? | | ????????????????????????????????###??????????????? | | ?????????# < #############???# ##?????????????? | | ?????????# $ ss! #### ########??????? | | ?????????# %** ??????? | | ????????????????#########@ ??????? | | ????????????????????????# #????????? | | ????????????????????????### #????????? | | ??????????????????????????# #????????? | | ?????????????????????????## #????????? | | ????????????????????????## #????????? | | ????????????############# ## #???????? | | ????????????# ##?? #???????? | | ????????????# ########## ##???? ##???????? | | ????????##### #????????## #??????? ##????????? | | ????????# #?????????# #??????????????????? | | ??????### #####?????????## ##??????????????????? | | ??????# #??????????????#####???????????????????? | | ??????# ###??????????????????????????????????????? | | ??????# #????????????????????????????????????????? | | ??????# #?????????????######?????????????????????? | | ??????# #????????????## ##????????????????????? | | ??????# #???????????## #?????????# ?????????? | | ??????# #???????????# #??????### ???????? | | ??????# #???????????# ##????# ???????? | | ??????# #????????????# #???# ???????? | | ??????# #?????????????# ##?# ????????? | | ??????# #????????????## ## ????????? | | ????### #??########### ????????? | | ???## #### #????????????? | +----------------------------------------------------+ Best States ------------- Heat Dissipation 25 Energy Generation 14 Energy Capacity 260 Matter Stores 300 Matter Capacity 300 Sight Range 16 Robot Scan Range 14 Terrain Scan Density 10 Armor Coverage 150 Evasion (%) 55 Recoil Reduction 2 Item Schematics ----------------- None Robot Schematics ------------------ None Fabricated ------------ Nothing Alien Tech Used ----------------- None Achievements -------------- None Challenges ------------ None Game ------ Seed MagneticRiotJammer Manual? 0 Play Time 00:43:47 Cumulative 4.3 hours Start 2024.04.09 @ 16:20:01 End 2024.04.09 @ 17:18:37 Sessions 1 Manual Loads 0 Difficulty Rogue Special Mode None Game No. 3 Rogue 3 Adventurer 0 Explorer 0 Win Type - Total 0 Types 0/0/0/0/0/0/0/0/0 Lore% 1 Gallery% 6 Achievement% 8 Wizard Run 0 Options --------- Layout 1 ASCII 0 Keyboard 0 Movement Mouse Keybinds 0 Fullscreen 2 Font 18/SmallcapsGlow Map View 54x44 Zoom Use 0% Tactical HUD 1 Map Filters NONE Filters NONE Steam X RUN: 6eddfb88-144b-4875-bbf7-aa02e96ceb0d